[Event "*** Qualifier 1: Titled Tuesday 3|2 Blitz"]
[Site "Chess.com"]
[Date "2017.04.04"]
[Round "2"]
[White "AndrewMcStone"]
[Black "politeplayer"]
[Result "1-0"]
[WhiteElo "2016"]
[BlackElo "2112"]
[TimeControl "180+2"]
[EndTime "13:24:21 PDT"]
[Termination "AndrewMcStone won by resignation"]

1. d4 {[%clk 0:03:02]} 1... d5 {[%clk 0:03:00.2]} 2. c4 {[%clk 0:03:02.7]} 2...
e6 {[%clk 0:03:01.1]} 3. Nc3 {[%clk 0:03:04]} 3... Bb4 {[%clk 0:03:00.3]} 4. a3
{[%clk 0:02:55.9]} 4... Bxc3+ {[%clk 0:02:59.3]} 5. bxc3 {[%clk 0:02:57.8]} 5...
Nf6 {[%clk 0:02:58.1]} 6. cxd5 {[%clk 0:02:58.2]} 6... exd5 {[%clk 0:02:56.9]}
7. e3 {[%clk 0:02:59.1]} 7... O-O {[%clk 0:02:52.7]} 8. Bd3 {[%clk 0:02:59.6]}
8... c5 {[%clk 0:02:53.1]} 9. Ne2 {[%clk 0:03:00.4]} 9... c4 {[%clk 0:02:41.1]}
10. Bc2 {[%clk 0:02:58.9]} 10... Nc6 {[%clk 0:02:40.9]} 11. Ng3 {[%clk
0:02:57.3]} 11... Re8 {[%clk 0:02:37.8]} 12. f3 {[%clk 0:02:45.4]} 12... g6
{[%clk 0:02:28.5]} 13. O-O {[%clk 0:02:43.9]} 13... h5 {[%clk 0:02:18.9]} 14.
Bd2 {[%clk 0:01:27.7]} 14... h4 {[%clk 0:02:06.7]} 15. Nh1 {[%clk 0:01:28.4]}
15... Nh5 {[%clk 0:02:06.2]} 16. Nf2 {[%clk 0:01:12]} 16... Kg7 {[%clk
0:01:47.2]} 17. e4 {[%clk 0:01:12.5]} 17... Rh8 {[%clk 0:01:28]} 18. e5 {[%clk
0:01:05]} 18... Ng3 {[%clk 0:01:23.4]} 19. Re1 {[%clk 0:00:44.3]} 19... Rh5
{[%clk 0:00:50.7]} 20. Ng4 {[%clk 0:00:27.1]} 20... Bxg4 {[%clk 0:00:34.9]} 21.
fxg4 {[%clk 0:00:28]} 21... Rh7 {[%clk 0:00:30.1]} 22. Qf3 {[%clk 0:00:17.7]}
22... Ne4 {[%clk 0:00:18.7]} 23. Bxe4 {[%clk 0:00:18.7]} 23... dxe4 {[%clk
0:00:19.6]} 24. Qxe4 {[%clk 0:00:19.4]} 24... Ne7 {[%clk 0:00:20.5]} 25. Bg5
{[%clk 0:00:18.6]} 25... Qd7 {[%clk 0:00:19.8]} 26. Bf6+ {[%clk 0:00:19.2]}
26... Kg8 {[%clk 0:00:20.4]} 27. Rf1 {[%clk 0:00:12.7]} 27... Nd5 {[%clk
0:00:20.2]} 28. Rf3 {[%clk 0:00:11.4]} 28... Re8 {[%clk 0:00:18.1]} 29. Raf1
{[%clk 0:00:11.2]} 29... h3 {[%clk 0:00:18.7]} 30. gxh3 {[%clk 0:00:09.5]} 30...
Nxf6 {[%clk 0:00:18.2]} 31. Rxf6 {[%clk 0:00:09.6]} 31... Rxh3 {[%clk
0:00:18.9]} 32. Rxf7 {[%clk 0:00:10.7]} 32... Qxf7 {[%clk 0:00:19.3]} 33. Rxf7
{[%clk 0:00:12.6]} 33... Kxf7 {[%clk 0:00:20.1]} 34. Qxb7+ {[%clk 0:00:12.8]}
34... Re7 {[%clk 0:00:19.4]} 35. Qd5+ {[%clk 0:00:14.1]} 35... Kg7 {[%clk
0:00:20.4]} 36. Qxc4 {[%clk 0:00:14.8]} 36... Rf7 {[%clk 0:00:21.3]} 37. Kg2
{[%clk 0:00:15]} 37... Re3 {[%clk 0:00:20.8]} 38. e6 {[%clk 0:00:13.4]} 38...
Rf4 {[%clk 0:00:21]} 39. Qc7+ {[%clk 0:00:12.4]} 39... Kg8 {[%clk 0:00:20.3]}
40. Qxf4 {[%clk 0:00:13.6]} 1-0

[Event "*** Qualifier 1: Titled Tuesday 3|2 Blitz"]
[Site "Chess.com"]
[Date "2017.04.04"]
[Round "2"]
[White "Boryboy"]
[Black "GamayevOleg"]
[Result "1-0"]
[WhiteElo "2313"]
[BlackElo "2394"]
[TimeControl "180+2"]
[EndTime "13:24:30 PDT"]
[Termination "Boryboy won by resignation"]

1. e4 {[%clk 0:03:01.9]} 1... d6 {[%clk 0:03:00.9]} 2. Bc4 {[%clk 0:02:58.1]}
2... Nf6 {[%clk 0:03:01.7]} 3. Nc3 {[%clk 0:02:58.1]} 3... e5 {[%clk 0:03:02.8]}
4. d3 {[%clk 0:02:54.6]} 4... Be7 {[%clk 0:03:03.9]} 5. h3 {[%clk 0:02:54.6]}
5... c6 {[%clk 0:03:05.1]} 6. Qf3 {[%clk 0:02:55.5]} 6... b5 {[%clk 0:03:00.7]}
7. Bb3 {[%clk 0:02:56.4]} 7... Nbd7 {[%clk 0:03:02.1]} 8. Nge2 {[%clk
0:02:56.8]} 8... Nc5 {[%clk 0:03:02.8]} 9. Be3 {[%clk 0:02:56.5]} 9... Nxb3
{[%clk 0:03:03.7]} 10. axb3 {[%clk 0:02:57.1]} 10... a6 {[%clk 0:03:01.3]} 11.
g4 {[%clk 0:02:57.6]} 11... h6 {[%clk 0:03:02]} 12. Ng3 {[%clk 0:02:58.1]} 12...
Nh7 {[%clk 0:02:57.6]} 13. Nf5 {[%clk 0:02:58.6]} 13... Bxf5 {[%clk 0:02:58.1]}
14. gxf5 {[%clk 0:02:59.1]} 14... Bg5 {[%clk 0:02:58.7]} 15. O-O-O {[%clk
0:02:44.9]} 15... Bxe3+ {[%clk 0:02:56.9]} 16. fxe3 {[%clk 0:02:46.3]} 16... a5
{[%clk 0:02:50.3]} 17. d4 {[%clk 0:02:46.7]} 17... Qc7 {[%clk 0:02:41.7]} 18.
dxe5 {[%clk 0:02:44.5]} 18... dxe5 {[%clk 0:02:41.6]} 19. Rhg1 {[%clk
0:02:45.7]} 19... Rg8 {[%clk 0:02:37.8]} 20. f6 {[%clk 0:02:34.3]} 20... Ng5
{[%clk 0:02:29.1]} 21. Qg4 {[%clk 0:02:32.2]} 21... g6 {[%clk 0:02:25.1]} 22. h4
{[%clk 0:02:24.3]} 22... Ne6 {[%clk 0:02:26]} 23. h5 {[%clk 0:02:25.1]} 23... a4
{[%clk 0:02:04.1]} 24. bxa4 {[%clk 0:02:20.3]} 24... b4 {[%clk 0:02:03]} 25. Nd5
{[%clk 0:02:08.4]} 25... cxd5 {[%clk 0:02:04]} 26. exd5 {[%clk 0:02:10.3]} 26...
Rc8 {[%clk 0:02:02.2]} 27. Qe2 {[%clk 0:01:58.7]} 27... Ng5 {[%clk 0:01:58.3]}
28. Qb5+ {[%clk 0:01:56.7]} 28... Kd8 {[%clk 0:01:49.5]} 29. Rg2 {[%clk
0:01:51.1]} 29... Ne4 {[%clk 0:01:33.4]} 30. Qxb4 {[%clk 0:01:45.9]} 30... Nxf6
{[%clk 0:01:25.1]} 31. d6 {[%clk 0:01:40.3]} 31... Qc5 {[%clk 0:01:18.9]} 32.
Qh4 {[%clk 0:01:26.1]} 32... g5 {[%clk 0:01:19.3]} 33. Qf2 {[%clk 0:01:27.4]}
33... Nd7 {[%clk 0:01:01.7]} 34. Qxf7 {[%clk 0:01:27.3]} 34... Qxe3+ {[%clk
0:00:48.6]} 35. Kb1 {[%clk 0:01:25.5]} 35... Re8 {[%clk 0:00:50.5]} 36. Qg6
{[%clk 0:01:01.6]} 36... Rb8 {[%clk 0:00:40.9]} 37. Qxh6 {[%clk 0:00:58.7]}
37... Qc3 {[%clk 0:00:34]} 38. Qxg5+ {[%clk 0:00:58.8]} 38... Kc8 {[%clk
0:00:34.9]} 39. b3 {[%clk 0:00:53.6]} 39... e4 {[%clk 0:00:19.1]} 40. Qd2 {[%clk
0:00:49.3]} 40... Qxd2 {[%clk 0:00:13.2]} 41. Rdxd2 {[%clk 0:00:51.2]} 41... Rh8
{[%clk 0:00:13.4]} 42. Rd4 {[%clk 0:00:49.9]} 42... Re8 {[%clk 0:00:11.9]} 43.
h6 {[%clk 0:00:49.8]} 43... Kb7 {[%clk 0:00:11]} 44. h7 {[%clk 0:00:48.4]} 44...
Kc6 {[%clk 0:00:12]} 45. Rgd2 {[%clk 0:00:44.6]} 45... e3 {[%clk 0:00:12.5]} 46.
Rc4+ {[%clk 0:00:46]} 46... Kb6 {[%clk 0:00:12.5]} 47. Re2 {[%clk 0:00:46.1]}
47... Re6 {[%clk 0:00:10.8]} 48. Rb4+ {[%clk 0:00:44.7]} 48... Ka7 {[%clk
0:00:11.5]} 49. Rxb8 {[%clk 0:00:46]} 49... Kxb8 {[%clk 0:00:13.4]} 50. h8=Q+
{[%clk 0:00:47.6]} 50... Kb7 {[%clk 0:00:14.6]} 51. Qd4 {[%clk 0:00:47.9]} 51...
Kc6 {[%clk 0:00:16.5]} 1-0

[Event "*** Qualifier 1: Titled Tuesday 3|2 Blitz"]
[Site "Chess.com"]
[Date "2017.04.04"]
[Round "2"]
[White "Ilja_Semjonovs"]
[Black "Aragon"]
[Result "1-0"]
[WhiteElo "2152"]
[BlackElo "2031"]
[TimeControl "180+2"]
[EndTime "13:24:36 PDT"]
[Termination "Ilja_Semjonovs won by checkmate"]

1. e4 {[%clk 0:03:00]} 1... d5 {[%clk 0:02:59.4]} 2. exd5 {[%clk 0:02:59.5]}
2... Qxd5 {[%clk 0:03:00.8]} 3. Nc3 {[%clk 0:03:00.8]} 3... Qd6 {[%clk
0:03:02.3]} 4. d4 {[%clk 0:03:00.2]} 4... c6 {[%clk 0:03:03.9]} 5. Nf3 {[%clk
0:03:00.3]} 5... Nf6 {[%clk 0:03:05.4]} 6. Ne5 {[%clk 0:02:43.2]} 6... Bf5
{[%clk 0:03:06.1]} 7. Bf4 {[%clk 0:02:38.3]} 7... Qd8 {[%clk 0:03:06.7]} 8. Bc4
{[%clk 0:02:28.7]} 8... e6 {[%clk 0:03:08.1]} 9. g4 {[%clk 0:02:08.2]} 9... Bg6
{[%clk 0:03:08.6]} 10. h4 {[%clk 0:02:07.3]} 10... Nbd7 {[%clk 0:03:07.3]} 11.
Nxd7 {[%clk 0:02:05.8]} 11... Qxd7 {[%clk 0:03:07.9]} 12. h5 {[%clk 0:02:06.4]}
12... Be4 {[%clk 0:03:09]} 13. f3 {[%clk 0:02:03.2]} 13... Bd5 {[%clk
0:03:09.4]} 14. Nxd5 {[%clk 0:02:04.2]} 14... cxd5 {[%clk 0:03:02]} 15. Bd3
{[%clk 0:01:58.3]} 15... Bd6 {[%clk 0:03:02.4]} 16. Bxd6 {[%clk 0:01:50.4]}
16... Qxd6 {[%clk 0:03:03.2]} 17. c3 {[%clk 0:01:46.9]} 17... a6 {[%clk
0:02:59.1]} 18. Qa4+ {[%clk 0:01:40.5]} 18... Qd7 {[%clk 0:02:55.3]} 19. Qxd7+
{[%clk 0:01:37.6]} 19... Nxd7 {[%clk 0:02:57.2]} 20. Kf2 {[%clk 0:01:39.5]}
20... Ke7 {[%clk 0:02:57.8]} 21. Ke3 {[%clk 0:01:38.2]} 21... Kd6 {[%clk
0:02:56.9]} 22. f4 {[%clk 0:01:38.9]} 22... h6 {[%clk 0:02:58]} 23. a4 {[%clk
0:01:36.7]} 23... b6 {[%clk 0:02:54.5]} 24. g5 {[%clk 0:01:37.4]} 24... hxg5
{[%clk 0:02:47.1]} 25. fxg5 {[%clk 0:01:39.3]} 25... e5 {[%clk 0:02:48.5]} 26.
dxe5+ {[%clk 0:01:33.5]} 26... Nxe5 {[%clk 0:02:48.8]} 27. Be2 {[%clk
0:01:33.7]} 27... Rhe8 {[%clk 0:02:44.1]} 28. h6 {[%clk 0:01:30.9]} 28... gxh6
{[%clk 0:02:38.5]} 29. gxh6 {[%clk 0:01:28.8]} 29... Nc4+ {[%clk 0:02:40.4]} 30.
Kf2 {[%clk 0:01:23.5]} 30... Nxb2 {[%clk 0:02:38]} 31. h7 {[%clk 0:01:21.4]}
31... Nc4 {[%clk 0:02:33.8]} 32. Bxc4 {[%clk 0:01:11.9]} 32... dxc4 {[%clk
0:02:33.2]} 33. Rag1 {[%clk 0:01:13.8]} 33... Rh8 {[%clk 0:02:31.2]} 34. Ke3
{[%clk 0:01:11.4]} 34... f6 {[%clk 0:02:29.1]} 35. Kd4 {[%clk 0:01:05.9]} 35...
b5 {[%clk 0:02:29.9]} 36. axb5 {[%clk 0:01:03.3]} 36... axb5 {[%clk 0:02:31.8]}
37. Rh6 {[%clk 0:01:05.2]} 37... Ke6 {[%clk 0:02:28.9]} 38. Re1+ {[%clk
0:01:05]} 38... Kf7 {[%clk 0:02:27.5]} 39. Rf1 {[%clk 0:01:06.1]} 39... Ra6
{[%clk 0:02:11.5]} 40. Kc5 {[%clk 0:01:02.9]} 40... Kg7 {[%clk 0:02:12.2]} 41.
Rh5 {[%clk 0:01:01]} 41... Kg6 {[%clk 0:02:07.1]} 42. Rh4 {[%clk 0:00:54.8]}
42... Ra7 {[%clk 0:01:53]} 43. Rg1+ {[%clk 0:00:51.5]} 43... Kf5 {[%clk
0:01:46.7]} 44. Rh5+ {[%clk 0:00:52.7]} 44... Kf4 {[%clk 0:01:45.9]} 45. Rh6
{[%clk 0:00:46.8]} 45... Rb7 {[%clk 0:01:39.7]} 46. Rxf6+ {[%clk 0:00:43.8]}
46... Ke3 {[%clk 0:01:40.8]} 47. Re6+ {[%clk 0:00:39.8]} 47... Kd2 {[%clk
0:01:40.7]} 48. Rg2+ {[%clk 0:00:37.6]} 48... Kd1 {[%clk 0:01:26.6]} 49. Ra6
{[%clk 0:00:20.4]} 49... Rc7+ {[%clk 0:01:08.2]} 50. Kb4 {[%clk 0:00:19.4]}
50... Ra7 {[%clk 0:01:02]} 51. Rxa7 {[%clk 0:00:20.1]} 51... Ra8 {[%clk
0:00:57.3]} 52. Rxa8 {[%clk 0:00:21.1]} 52... Ke1 {[%clk 0:00:59.2]} 53. Ra1#
{[%clk 0:00:21.7]} 1-0

[Event "*** Qualifier 1: Titled Tuesday 3|2 Blitz"]
[Site "Chess.com"]
[Date "2017.04.04"]
[Round "2"]
[White "ZEN-22"]
[Black "RobertoJBM"]
[Result "1/2-1/2"]
[WhiteElo "2329"]
[BlackElo "2391"]
[TimeControl "180+2"]
[EndTime "13:24:41 PDT"]
[Termination "Game drawn - insufficient material"]

1. e4 {[%clk 0:03:02]} 1... c6 {[%clk 0:03:02]} 2. Bc4 {[%clk 0:03:02.1]} 2...
d5 {[%clk 0:03:03.2]} 3. Bb3 {[%clk 0:03:03.3]} 3... dxe4 {[%clk 0:03:04.2]} 4.
Nc3 {[%clk 0:03:03.8]} 4... Nf6 {[%clk 0:03:01.1]} 5. f3 {[%clk 0:03:05.1]} 5...
Bf5 {[%clk 0:02:37.2]} 6. g4 {[%clk 0:03:05.4]} 6... Bg6 {[%clk 0:02:38.1]} 7.
h4 {[%clk 0:03:06.7]} 7... h6 {[%clk 0:02:35.2]} 8. h5 {[%clk 0:03:07.5]} 8...
Bh7 {[%clk 0:02:36.4]} 9. fxe4 {[%clk 0:03:08.7]} 9... Nxe4 {[%clk 0:02:31.8]}
10. Qf3 {[%clk 0:02:25.3]} 10... Ng5 {[%clk 0:02:11.9]} 11. Qf2 {[%clk
0:02:25.8]} 11... e6 {[%clk 0:02:10.8]} 12. d4 {[%clk 0:02:25.6]} 12... Nd7
{[%clk 0:02:09.8]} 13. Nh3 {[%clk 0:02:21]} 13... Nxh3 {[%clk 0:02:10]} 14. Rxh3
{[%clk 0:02:21.4]} 14... Be7 {[%clk 0:02:05.4]} 15. Bd2 {[%clk 0:02:17.4]} 15...
Nf6 {[%clk 0:02:05.9]} 16. Qg1 {[%clk 0:02:01.3]} 16... Qc7 {[%clk 0:01:54.8]}
17. O-O-O {[%clk 0:02:00.6]} 17... O-O-O {[%clk 0:01:55.6]} 18. g5 {[%clk
0:02:01.9]} 18... hxg5 {[%clk 0:01:55.4]} 19. Qxg5 {[%clk 0:02:02.1]} 19... Ne4
{[%clk 0:01:43.8]} 20. Qxg7 {[%clk 0:01:59.9]} 20... Nxd2 {[%clk 0:01:43.4]} 21.
Rxd2 {[%clk 0:01:55.4]} 21... Bf5 {[%clk 0:01:37.1]} 22. Rh1 {[%clk 0:01:43.2]}
22... Bd6 {[%clk 0:01:30]} 23. Rg2 {[%clk 0:01:28.5]} 23... Rh7 {[%clk
0:01:20.6]} 24. Qf6 {[%clk 0:01:21.6]} 24... Be7 {[%clk 0:01:20.3]} 25. Qe5
{[%clk 0:01:18.6]} 25... Qxe5 {[%clk 0:01:20.7]} 26. dxe5 {[%clk 0:01:19.3]}
26... Rdh8 {[%clk 0:01:22.6]} 27. Rgh2 {[%clk 0:01:02.6]} 27... Bg4 {[%clk
0:01:18.3]} 28. h6 {[%clk 0:01:01.6]} 28... Rxh6 {[%clk 0:01:18.2]} 29. Rxh6
{[%clk 0:01:02.5]} 29... Rxh6 {[%clk 0:01:20.1]} 30. Rg1 {[%clk 0:01:02.5]}
30... Bg5+ {[%clk 0:01:07.9]} 31. Kb1 {[%clk 0:01:03.2]} 31... Be3 {[%clk
0:01:06.5]} 32. Rf1 {[%clk 0:01:02.4]} 32... Bf5 {[%clk 0:01:02.4]} 33. a4
{[%clk 0:00:58]} 33... Bd4 {[%clk 0:01:01.3]} 34. Re1 {[%clk 0:00:56.9]} 34...
Bxc3 {[%clk 0:01:00.4]} 35. bxc3 {[%clk 0:00:58.1]} 35... Rh2 {[%clk 0:00:56.2]}
36. Kb2 {[%clk 0:00:58.8]} 36... Kc7 {[%clk 0:00:55.4]} 37. a5 {[%clk
0:01:00.1]} 37... Rh4 {[%clk 0:00:48.5]} 38. Rg1 {[%clk 0:00:55.9]} 38... Rh2
{[%clk 0:00:34.6]} 39. Rg7 {[%clk 0:00:56]} 39... Bg6 {[%clk 0:00:35.9]} 40.
Bxe6 {[%clk 0:00:52.3]} 40... Rxc2+ {[%clk 0:00:36.6]} 41. Kb3 {[%clk 0:00:53]}
41... Rf2 {[%clk 0:00:37.4]} 42. Bc4 {[%clk 0:00:49.5]} 42... Kd8 {[%clk
0:00:38.1]} 43. e6 {[%clk 0:00:49.5]} 43... Ke7 {[%clk 0:00:39.1]} 44. exf7
{[%clk 0:00:43.3]} 44... Bxf7 {[%clk 0:00:41]} 45. Kb4 {[%clk 0:00:43.6]} 45...
Rf4 {[%clk 0:00:41.2]} 46. Rxf7+ {[%clk 0:00:43.4]} 46... Rxf7 {[%clk
0:00:43.1]} 47. Bxf7 {[%clk 0:00:44.7]} 47... Kxf7 {[%clk 0:00:44.8]} 48. Kc5
{[%clk 0:00:45.1]} 48... Ke7 {[%clk 0:00:45.1]} 49. a6 {[%clk 0:00:46.1]} 49...
bxa6 {[%clk 0:00:37.8]} 50. Kxc6 {[%clk 0:00:48]} 50... Kd8 {[%clk 0:00:39.3]}
51. c4 {[%clk 0:00:47.4]} 51... Kc8 {[%clk 0:00:40.1]} 52. c5 {[%clk 0:00:39.5]}
52... a5 {[%clk 0:00:37.9]} 53. Kb5 {[%clk 0:00:40.3]} 53... Kb7 {[%clk
0:00:39.1]} 54. Kxa5 {[%clk 0:00:38.1]} 54... Kc6 {[%clk 0:00:41]} 55. Kb4
{[%clk 0:00:36.4]} 55... a5+ {[%clk 0:00:42.9]} 56. Kxa5 {[%clk 0:00:37.3]}
56... Kxc5 {[%clk 0:00:44]} 1/2-1/2

[Event "*** Qualifier 1: Titled Tuesday 3|2 Blitz"]
[Site "Chess.com"]
[Date "2017.04.04"]
[Round "2"]
[White "DavidMarkosyan"]
[Black "GeorgMeier"]
[Result "1-0"]
[WhiteElo "2359"]
[BlackElo "2711"]
[TimeControl "180+2"]
[EndTime "13:24:42 PDT"]
[Termination "DavidMarkosyan won by resignation"]

1. e4 {[%clk 0:02:57.5]} 1... e6 {[%clk 0:03:00.7]} 2. d3 {[%clk 0:02:58.2]}
2... d5 {[%clk 0:03:02]} 3. Nd2 {[%clk 0:02:59.8]} 3... Nf6 {[%clk 0:03:03.6]}
4. Ngf3 {[%clk 0:03:01]} 4... c5 {[%clk 0:03:05.1]} 5. g3 {[%clk 0:03:02.3]}
5... Nc6 {[%clk 0:03:06.1]} 6. Bg2 {[%clk 0:03:03.5]} 6... Be7 {[%clk
0:03:07.8]} 7. O-O {[%clk 0:03:04.6]} 7... O-O {[%clk 0:03:09.5]} 8. Re1 {[%clk
0:03:05.9]} 8... b5 {[%clk 0:03:10.8]} 9. e5 {[%clk 0:03:06.4]} 9... Nd7 {[%clk
0:03:11.9]} 10. Nf1 {[%clk 0:03:08.1]} 10... Qc7 {[%clk 0:03:11.3]} 11. Bf4
{[%clk 0:03:08.9]} 11... Bb7 {[%clk 0:03:12.8]} 12. h4 {[%clk 0:03:09.6]} 12...
Rfc8 {[%clk 0:03:13.9]} 13. Ne3 {[%clk 0:03:10.4]} 13... Qd8 {[%clk 0:03:14.4]}
14. Ng4 {[%clk 0:03:10.5]} 14... Bf8 {[%clk 0:03:13.6]} 15. h5 {[%clk
0:03:09.5]} 15... h6 {[%clk 0:03:15.1]} 16. Qd2 {[%clk 0:03:08.7]} 16... a5
{[%clk 0:03:16.3]} 17. Ngh2 {[%clk 0:02:56.2]} 17... Be7 {[%clk 0:02:58.8]} 18.
g4 {[%clk 0:02:55.9]} 18... b4 {[%clk 0:02:48.8]} 19. g5 {[%clk 0:02:56.4]}
19... hxg5 {[%clk 0:02:49.7]} 20. Nxg5 {[%clk 0:02:46]} 20... Nd4 {[%clk
0:02:31.6]} 21. Ngf3 {[%clk 0:02:41.4]} 21... Nf5 {[%clk 0:02:31.1]} 22. Bh3
{[%clk 0:02:39.4]} 22... Ra6 {[%clk 0:02:12.9]} 23. Kh1 {[%clk 0:02:27.2]} 23...
c4 {[%clk 0:01:56.1]} 24. d4 {[%clk 0:02:25.4]} 24... c3 {[%clk 0:01:57]} 25.
bxc3 {[%clk 0:02:25.6]} 25... Rxc3 {[%clk 0:01:58.1]} 26. Bxf5 {[%clk
0:02:22.9]} 26... exf5 {[%clk 0:01:57.8]} 27. Rg1 {[%clk 0:02:19.7]} 27... Nf8
{[%clk 0:01:47.5]} 28. Bh6 {[%clk 0:02:11.6]} 28... g6 {[%clk 0:01:06.9]} 29.
Qf4 {[%clk 0:01:57.2]} 29... Bc8 {[%clk 0:00:38.1]} 30. Rg3 {[%clk 0:01:43.3]}
30... Ne6 {[%clk 0:00:39.3]} 31. Qd2 {[%clk 0:01:37.1]} 31... Ng7 {[%clk
0:00:19.7]} 32. Bxg7 {[%clk 0:01:36]} 32... Kxg7 {[%clk 0:00:20.7]} 33. Rag1
{[%clk 0:01:35.2]} 33... Qh8 {[%clk 0:00:21.3]} 34. hxg6 {[%clk 0:01:33.3]}
34... Rxg6 {[%clk 0:00:22.4]} 35. Rxg6+ {[%clk 0:01:27.1]} 35... fxg6 {[%clk
0:00:24.3]} 36. Qf4 {[%clk 0:01:26]} 36... Qh5 {[%clk 0:00:24.2]} 37. e6 {[%clk
0:01:21.9]} 37... Bxe6 {[%clk 0:00:24.7]} 38. Qe5+ {[%clk 0:01:17.9]} 38... Kf7
{[%clk 0:00:26]} 39. Re1 {[%clk 0:01:18.8]} 39... Rc6 {[%clk 0:00:23]} 40. Qb8
{[%clk 0:01:10.2]} 40... Bd6 {[%clk 0:00:21.8]} 41. Ne5+ {[%clk 0:01:06.2]}
41... Bxe5 {[%clk 0:00:22.7]} 42. Qxe5 {[%clk 0:01:06.4]} 42... Qh4 {[%clk
0:00:19]} 43. Kg1 {[%clk 0:01:04.5]} 43... Qg5+ {[%clk 0:00:18.7]} 44. Kf1
{[%clk 0:01:03.2]} 44... Qf6 {[%clk 0:00:19]} 45. Nf3 {[%clk 0:01:03]} 45... f4
{[%clk 0:00:18.2]} 46. Kg2 {[%clk 0:00:50.3]} 46... Ke7 {[%clk 0:00:13.7]} 47.
Qxd5 {[%clk 0:00:46.4]} 47... Rxc2 {[%clk 0:00:07.9]} 48. Qxa5 {[%clk
0:00:40.2]} 48... Rc3 {[%clk 0:00:05.2]} 49. Qxb4+ {[%clk 0:00:40.7]} 1-0

[Event "*** Qualifier 1: Titled Tuesday 3|2 Blitz"]
[Site "Chess.com"]
[Date "2017.04.04"]
[Round "2"]
[White "TheNextLevelFan"]
[Black "Usurpov"]
[Result "1-0"]
[WhiteElo "2353"]
[BlackElo "2280"]
[TimeControl "180+2"]
[EndTime "13:24:42 PDT"]
[Termination "TheNextLevelFan won by resignation"]

1. d4 {[%clk 0:03:00]} 1... Nf6 {[%clk 0:03:00.2]} 2. c4 {[%clk 0:03:01]} 2...
g6 {[%clk 0:03:01.5]} 3. Nf3 {[%clk 0:03:02.2]} 3... Bg7 {[%clk 0:03:02.2]} 4.
Nc3 {[%clk 0:03:03.4]} 4... d5 {[%clk 0:03:03.6]} 5. Bf4 {[%clk 0:03:03.7]} 5...
O-O {[%clk 0:03:01.3]} 6. Rc1 {[%clk 0:03:02.4]} 6... dxc4 {[%clk 0:03:00.4]} 7.
e4 {[%clk 0:02:55]} 7... Bg4 {[%clk 0:03:00.9]} 8. Bxc4 {[%clk 0:02:53.9]} 8...
Bxf3 {[%clk 0:02:52.5]} 9. gxf3 {[%clk 0:02:54.2]} 9... Nh5 {[%clk 0:02:46.3]}
10. Be3 {[%clk 0:02:55.1]} 10... e5 {[%clk 0:02:45.3]} 11. dxe5 {[%clk
0:02:52.7]} 11... Qxd1+ {[%clk 0:02:40.1]} 12. Rxd1 {[%clk 0:02:52.5]} 12...
Bxe5 {[%clk 0:02:41.6]} 13. O-O {[%clk 0:02:33.2]} 13... Nc6 {[%clk 0:02:33.9]}
14. Nd5 {[%clk 0:02:28.6]} 14... Bxb2 {[%clk 0:02:26.6]} 15. Rb1 {[%clk
0:02:29]} 15... Be5 {[%clk 0:02:23.6]} 16. f4 {[%clk 0:02:27.9]} 16... Bg7
{[%clk 0:02:20.5]} 17. Rxb7 {[%clk 0:02:27.8]} 17... Na5 {[%clk 0:02:14.6]} 18.
Rxc7 {[%clk 0:02:28.4]} 18... Nxc4 {[%clk 0:01:58]} 19. Rxc4 {[%clk 0:02:30.3]}
19... Rfd8 {[%clk 0:01:55.3]} 20. Rb1 {[%clk 0:02:26.7]} 20... f5 {[%clk
0:01:50.1]} 21. Ne7+ {[%clk 0:02:14.6]} 21... Kf7 {[%clk 0:01:41.4]} 22. Rc7
{[%clk 0:02:10.1]} 22... Ke6 {[%clk 0:01:30.1]} 23. e5 {[%clk 0:01:32.8]} 23...
Bh6 {[%clk 0:01:16.3]} 24. Nc6 {[%clk 0:01:27]} 24... Rdc8 {[%clk 0:01:00.9]}
25. Re7+ {[%clk 0:01:17.3]} 25... Kd5 {[%clk 0:00:59.3]} 26. Nxa7 {[%clk
0:01:17.9]} 26... Rc2 {[%clk 0:00:56.5]} 27. Rf7 {[%clk 0:00:57]} 27... Bxf4
{[%clk 0:00:46.8]} 28. e6 {[%clk 0:00:46.5]} 28... Kxe6 {[%clk 0:00:37.1]} 29.
Rxh7 {[%clk 0:00:47.5]} 29... Bxe3 {[%clk 0:00:34.8]} 30. fxe3 {[%clk
0:00:48.4]} 30... Nf6 {[%clk 0:00:35.3]} 31. Rb6+ {[%clk 0:00:47.2]} 31... Ke5
{[%clk 0:00:20.8]} 32. Re7+ {[%clk 0:00:48.1]} 32... Kd5 {[%clk 0:00:18.6]} 33.
Rxf6 {[%clk 0:00:49.5]} 33... Rh8 {[%clk 0:00:18.5]} 34. Rxg6 {[%clk 0:00:35.1]}
34... Rhxh2 {[%clk 0:00:17.4]} 35. a4 {[%clk 0:00:35.7]} 35... Rhe2 {[%clk
0:00:16.5]} 36. Kf1 {[%clk 0:00:34.1]} 36... Rh2 {[%clk 0:00:16.1]} 37. Rd7+
{[%clk 0:00:34.3]} 37... Ke4 {[%clk 0:00:16.4]} 38. Rd1 {[%clk 0:00:33.2]} 38...
Kf3 {[%clk 0:00:16]} 39. Kg1 {[%clk 0:00:31.5]} 39... Rh7 {[%clk 0:00:08.4]} 40.
Nb5 {[%clk 0:00:31.8]} 40... Kxe3 {[%clk 0:00:08.4]} 41. Rf1 {[%clk 0:00:32.4]}
41... Ra2 {[%clk 0:00:07.5]} 42. Re6+ {[%clk 0:00:27.5]} 42... Kd3 {[%clk
0:00:08.1]} 43. Rd6+ {[%clk 0:00:22.1]} 43... Kc4 {[%clk 0:00:08.1]} 44. Rd4+
{[%clk 0:00:23.2]} 44... Kb3 {[%clk 0:00:07.3]} 45. Rf3+ {[%clk 0:00:24.4]}
45... Kb2 {[%clk 0:00:08.7]} 46. Rd2+ {[%clk 0:00:25]} 1-0